Cogmind - Beta 16 @@@ ROGUE MODE // 2025.12.18 @ 19:29:10 Player: PE-P51 Result: Destroyed by Y-45 Defender with Heavy Assault Rifle Performance ------------- Evolutions (0) 0 Regions Visited (2) 400 Robots Destroyed (31) 155 Value Destroyed (608) 608 Prototype IDs (0) 0 Alien Tech Used (0) 0 Bonus (0) 0 TOTAL SCORE: 1163 Bonus ------- None Cogmind --------- Core Integrity 0/250 Matter 300/300 Energy 100/100 System Corruption 0% Temperature Cool (9) Movement Core (50) Location -10/Mines Parts ------- > --- POWER (1) -------- (None) > --- PROPULSION (2) --- (None) > --- UTILITY (2) ------ Targeting Computer > --- WEAPON (2) ------- Hammer > --- INVENTORY (5) ---- Medium Storage Unit Large Storage Unit Large Storage Unit Compact Matter Pod (150) Structural Scanner Peak State ------------ > --- POWER ------------ Light Nuclear Core > --- PROPULSION ------- Aluminum Leg Aluminum Leg > --- UTILITY ---------- Medium Storage Unit Targeting Computer > --- WEAPON ----------- Rocket Launcher Hammer > --- INVENTORY -------- Light Ion Engine Flight Unit Large Storage Unit Large Storage Unit Compact Matter Pod Structural Scanner Terrain Scan Processor Backup Plating I Light Cannon Grenade Launcher [Rating: 11] Favorites ----------- Power Light Nuclear Core Engine Ion Engine Power Core Light Nuclear Core Propulsion Aluminum Leg Leg Aluminum Leg Utility Targeting Computer Storage Small Storage Unit Processor Targeting Computer Protection Backup Plating I Weapon Hammer Ballistic Gun Light Assault Rifle Ballistic Cannon Light Cannon Launcher Grenade Launcher Impact Weapon Hammer Build | -11 -10 -10 ------- Run | Yrd Mat Min Slots Evolved . | . . . Power . | . . . Propulsion . | . . . Utility . | . . . Weapon . | . . . Parts Attached 19 | 6 12 1 Power 2 | 1 1 . Engine 1 | 1 . . Core 1 | . 1 . Reactor . | . . . Propulsion 6 | 2 4 . Treads . | . . . Leg 6 | 2 4 . Wheel . | . . . Hover . | . . . Flight . | . . . Utility 4 | 1 3 . Device . | . . . Storage 2 | 1 1 . Processor 1 | . 1 . Hackware . | . . . Protection 1 | . 1 . Artifact . | . . . Weapon 7 | 2 4 1 Energy Gun . | . . . Energy Cannon . | . . . Ballistic Gun 3 | 2 1 . Ballistic Cannon 1 | . 1 . Launcher 2 | . 1 1 Special Weapon . | . . . Impact Weapon 1 | . 1 . Slashing Weapon . | . . . Piercing Weapon . | . . . Special Melee Weapon . | . . . Unidentified Prototypes . | . . . Parts Lost 5 | . . 5 Power 1 | . . 1 Propulsion 2 | . . 2 Utility 1 | . . 1 Weapon 1 | . . 1 Highest Loss Streak 5 | . . 5 To Critical Strikes . | . . . Average Backups 6 | . 5 9 Power 1 | . 1 . Propulsion . | . . . Utility 3 | . 2 5 Weapon 1 | . 1 1 Tool/Special . | . . . Unused Backups 10 | . 2 8 Power 1 | . . 1 Propulsion . | . . . Utility 7 | . 1 6 Weapon 2 | . 1 1 Tool/Special . | . . . Average Slot Usage (%) 97 | . 96 98 Engine 1 | . 2 . Core 12 | . 11 13 Leg 27 | . 28 27 Storage 12 | . 12 13 Processor 12 | . 10 14 Protection 1 | . 1 . Ballistic Gun 10 | . 16 . Launcher 7 | . 4 13 Impact Weapon 8 | . 6 14 Peak Build Rating 11 | 6 10 11 Average Rating 8 | 5 8 10 On Entrance 5 | . 6 10 Avg Prop Armor Cover (%) 17 | 17 17 . Naked Turns . | . . . Heaviest Build 21 | 13 20 21 Greatest Support 20 | 3 20 20 Greatest Overweight (x) 4 | 4 4 1 Average Overweight (x) . | 3 . . Largest Inventory Capacity 10 | 8 10 10 Average Capacity 8 | 7 7 9 Most Carried 10 | 1 10 10 Average Carried 6 | . 5 9 Final Capacity 10 | 8 10 5 Final Carried 10 | 1 10 5 Class Distribution -------------------- 100% | Mutant Dominant Class ---------------- Mutant | -10/Materials Mutant | -10/Mines Resources | -11 -10 -10 ----------- Run | Yrd Mat Min Matter Collected 822 | 236 566 20 Remotely . | . . . Salvage Created 974 | . 872 102 Parts 43 | . 41 2 Haulers Intercepted 1 | . 1 . Recyclers Shooed . | . . . Parts Field Recycled . | . . . Retrieved Matter . | . . . Parts Self-Destructed . | . . . Prevented . | . . . Parts Restored . | . . . Kills | -11 -10 -10 ------- Run | Yrd Mat Min Combat Hostiles Destroyed 18 | . 17 1 Melee 2 | . 2 . Guns 10 | . 10 . AOE 4 | . 4 . Classes Destroyed 8 | . 6 2 Builder 4 | . 4 . Tunneler 3 | . . 3 Hauler 1 | . 1 . Recycler 3 | . 3 . Watcher 2 | . 2 . Swarmer 6 | . 6 . Grunt 11 | . 11 . Sentry 1 | . . 1 Best Kill Streak 3 | . 3 1 Combat Bots Only 3 | . 3 1 Max Kills in Single Turn 3 | . 3 1 Gunslinging . | . . . Exploded 3 | . 3 . Melee 1 | . 1 . Uniques/NPCs Destroyed . | . . . Combat | -11 -10 -10 -------- Run | Yrd Mat Min Hostile Shots Fired 119 | . 79 40 Missed 27 | . 20 7 Hits 92 | . 59 33 Projectile 92 | . 59 33 Critical Strikes 1 | . . 1 Damage Taken 1107 | . 624 483 Core 257 | . 110 147 Absorbed by Shields . | . . . Core Remaining (%) 100 | 100 . . Volleys Fired 47 | . 47 . Largest 2 | . 2 . Hottest 40 | . 40 . Shots Fired 91 | . 91 . Gun 88 | . 88 . Cannon . | . . . Launcher 3 | . 3 . Special . | . . . Kinetic 88 | . 88 . Thermal . | . . . Explosive 3 | . 3 . Electromagnetic . | . . . Robot Hit Streak 8 | . 8 . Robot Miss Streak 4 | . 4 . Penetration Max . | . . . Secondary Targets 3 | . 3 . Max Gunslinging Chain 1 | . 1 . Shots Hit Robots 80 | . 69 11 Core Hits 41 | . 40 1 Critical Kills 1 | . . 1 Critical Parts Destroyed 4 | . 2 2 Critical Strikes 6 | . 2 4 Smash 6 | . 2 4 Melee Attacks 23 | . 10 13 Impact 23 | . 10 13 Slashing . | . . . Piercing . | . . . Sneak Attacks 7 | . 4 3 Combat Hostiles . | . . . Follow-up Attacks . | . . . Damage Inflicted 1565 | . 1220 345 Guns 581 | . 581 . Cannons . | . . . Explosions 235 | . 235 . Melee 743 | . 398 345 Ramming 6 | . 6 . Kinetic 581 | . 581 . Thermal . | . . . Explosive 235 | . 235 . Electromagnetic . | . . . Impact 743 | . 398 345 Slashing . | . . . Piercing . | . . . Highest Corruption . | . . . Average Corruption . | . . . Corruption Purged . | . . . Corruption Blocked . | . . . Overload Shots . | . . . Overflow Damage 287 | . 177 110 Projectiles . | . . . Explosions . | . . . Melee 287 | . 177 110 Knockbacks 2 | . 2 . Impact 2 | . 2 . Kinetic . | . . . Secondary . | . . . Self-Inflicted Damage 19 | . 19 . Shots 1 | . 1 . Rammed . | . . . Targets Rammed 3 | . 3 . Kicked 3 | . 3 . Crushed . | . . . Highest Temperature 22 | . 22 12 Average Temperature 7 | . 7 12 Received Heat Transfer 372 | . 210 162 Siege Activations . | . . . Martial Activations . | . . . Shielding Activations . | . . . Robots Disrupted . | . . . Combat Hostiles . | . . . Robots Corrupted 5 | . 3 2 Combat Hostiles 2 | . 1 1 Parts Fried 15 | . 5 10 Impact Corruptions 12 | . 7 5 Robots Melted . | . . . Combat Hostiles . | . . . Parts Melted . | . . . Heat Transferred . | . . . Parts Sabotaged . | . . . Parts Stolen . | . . . Parts Stripped . | . . . Power Chain Reactions . | . . . Alert | -11 -10 -10 ------- Run | Yrd Mat Min Maximum Alert Level 1 | . 1 . Low Security (%) 80 | 100 67 100 Level 1 19 | . 32 . Level 2 . | . . . Level 3 . | . . . Level 4 . | . . . Level 5 . | . . . High Security . | . . . Max Security . | . . . Peak Influence 331 | . 331 108 Initial 108 | . . 108 Average 96 | . 147 23 Influence Increases 687 | . 652 35 Destroy 0b10 Robot/C 360 | . 340 20 Destroy 0b10 Robot/NC 65 | . 50 15 Destroy Leader 66 | . 66 . Successful Hack 9 | . 9 . Select Force Hacks 30 | . 30 . Disable Machine 15 | . 15 . Destroy Structure 22 | . 22 . Lose Combat Pursuer 120 | . 120 . Influence Decreases 687 | . 373 314 Entered New Map 171 | . . 171 Time Decay 496 | . 373 123 Lost Part 20 | . . 20 Squads Dispatched 2 | . 2 . Investigation 1 | . 1 . Extermination . | . . . Reinforcement 1 | . 1 . Assault . | . . . Garrison . | . . . Intercept . | . . . Searches Triggered . | . . . Construction Impeded . | . . . Haulers Reinforced . | . . . Active Scanning Responses . | . . . Cargo Convoy Interrupts . | . . . Stealth | -11 -10 -10 --------- Run | Yrd Mat Min Distress Signals 3 | . 3 . Communications Jammed . | . . . Distress Signals . | . . . Times Spotted 33 | . 31 2 Peak Tracking Total 4 | . 4 2 Tactical Retreats 5 | . 5 . Traps | -11 -10 -10 ------- Run | Yrd Mat Min Traps Triggered . | . . . Indirectly . | . . . Trap Hack Attempts . | . . . Triggered . | . . . Disarmed . | . . . Reprogrammed . | . . . Reused . | . . . Traps Extracted . | . . . Installed . | . . . Triggered . | . . . Machines | -11 -10 -10 ---------- Run | Yrd Mat Min Machines Disabled 1 | . 1 . Max in Single Turn 1 | . 1 . Machines Repaired . | . . . Machines Dismantled . | . . . Machines Sabotaged . | . . . Overloaded Fab Kills . | . . . Hacking | -11 -10 -10 --------- Run | Yrd Mat Min Machines Accessed 4 | . 4 . Terminals 2 | . 2 . Fabricators . | . . . Repair Stations 1 | . 1 . Recycling Units 1 | . 1 . Scanalyzers . | . . . Garrison Access . | . . . Total Hacks 10 | . 10 . Successful 5 | . 5 . Failed 5 | . 5 . Catastrophic . | . . . Database Lockouts . | . . . Manual 4 | . 4 . Terminals 7 | . 7 . Fabricators . | . . . Repair Stations 2 | . 2 . Recycling Units 1 | . 1 . Scanalyzers . | . . . Garrison Access . | . . . Terminal Hacks 1 | . 1 . Hauler Manifests 1 | . 1 . Fabricator Hacks . | . . . Repair Station Hacks 1 | . 1 . Refit 1 | . 1 . Recycling Unit Hacks . | . . . Scanalyzer . | . . . Garrison Access Hacks . | . . . Unauthorized Hacks 3 | . 3 . Terminals 2 | . 2 . Botnet 1 | . 1 . Skim 1 | . 1 . Fabricators . | . . . Repair Stations . | . . . Recycling Units 1 | . 1 . Tunnel 1 | . 1 . Scanalyzers . | . . . Garrison Access . | . . . Data Cores Recovered . | . . . Used . | . . . Hacking Detections 2 | . 2 . Full Trace Events 1 | . 1 . Feedback Events . | . . . Feedback Blocked . | . . . Robot Schematics Acquired . | . . . Robots Built . | . . . Authchips . | . . . Time . | . . . Total Robot Build Rating . | . . . Part Schematics Acquired . | . . . Parts Built . | . . . Authchips . | . . . Time . | . . . Total Part Build Rating . | . . . Part Studies Acquired . | . . . Parts Repaired . | . . . Time . | . . . Parts Recycled . | . . . Recycled Matter . | . . . Retrieved Matter . | . . . Retrieved Components . | . . . Parts Scanalyzed . | . . . Part Schematics Acquired . | . . . Parts Damaged . | . . . Bothacking | -11 -10 -10 ------------ Run | Yrd Mat Min Used RIF Installer . | . . . Robots Hacked . | . . . Non-combat . | . . . Combat . | . . . Robot Hacks Applied . | . . . Relay Couplers Released . | . . . Fabnet Peak Effective % . | . . . Robots Rewired . | . . . Allies Hacked . | . . . Hacks Repelled . | . . . Allies | -11 -10 -10 -------- Run | Yrd Mat Min Total Allies . | . . . Largest Group . | . . . Highest-Rated Group . | . . . Highest-Rated Ally . | . . . Total Orders . | . . . Ally Attacks . | . . . Total Damage . | . . . Kills . | . . . Allies Corrupted . | . . . Allies Melted . | . . . Intel | -11 -10 -10 ------- Run | Yrd Mat Min Active Infowar (turns) . | . . . Robot Analysis Total . | . . . Derelict Logs Recovered 2 | . . 2 Drone Launches . | . . . Drone Recoveries . | . . . Exploration | -11 -10 -10 ------------- Run | Yrd Mat Min Turns Passed 2004 | 171 1204 629 Spaces Moved 1172 | 77 726 369 Core 156 | 77 79 . Treads . | . . . Legs 1016 | . 647 369 Wheels . | . . . Hover . | . . . Flight . | . . . Fastest Speed 50 | 50 120 120 Average Speed 146 | 212 134 158 Slowest Speed 250 | 250 250 190 Overloaded Moves . | . . . Propulsion Burnouts . | . . . Robots Hopped . | . . . Potential Cave-ins . | . . . Cave-ins Triggered . | . . . Exploration Rate (%) 55 | 4 83 79 Regions Visited 2 Branch Regions 1 Pre-discovered Areas 2 | . 1 1 Known Exits Taken . | . . . Unknown Exits Taken 2 | 1 1 . Scrap Searched 2 | . . 2 Spaces Dug 8 | . 8 . Terrain Destroyed 20 | . 20 . Melee . | . . . Projectile . | . . . AOE 20 | . 20 . Terrain Rammed . | . . . Walls Destroyed . | . . . Machines Disabled . | . . . Actions | -11 -10 -10 --------- Run | Yrd Mat Min Total 1334 | 83 860 391 Wait 36 | . 32 4 Move 1170 | 76 725 369 Hop . | . . . Pick Up 14 | 1 12 1 Fast Attach 7 | 6 1 . Attach 1 | . 1 . Detach 1 | . 1 . Swap 18 | . 16 2 Drop 14 | . 12 2 Fire 47 | . 47 . Melee 23 | . 10 13 Ram . | . . . Kick 3 | . 3 . Crush . | . . . Escape Stasis . | . . . Rewire . | . . . Trap . | . . . Miscellaneous . | . . . Route ------- -11/Scrapyard -10/Materials (discovered 5 exits: [*Mat x2] / [*Min x2] / [*Sub]) -10/Mines (discovered 2 exits: [*Mat x2]) History --------- Turn | Location | Event 13 | -11/Scrapyard | Discovered new exit (range 15) 172 | -11/Scrapyard | Entered Materials 222 | -10/Materials | Discovered new exit (range 16) 306 | -10/Materials | Build established: Mutant 403 | -10/Materials | Discovered new exit (range 14) 881 | -10/Materials | Discovered new exit (range 13) 1014 | -10/Materials | Discovered new exit (range 15) 1268 | -10/Materials | Discovered new exit (range 14) 1376 | -10/Materials | Entered Mines 1392 | -10/Mines | Met a Derelict bent on vengeance 1455 | -10/Mines | Discovered new exit (range 5) 1504 | -10/Mines | Discovered new exit (range 14) 1548 | -10/Mines | Learned Materials stockpile data 1565 | -10/Mines | Received a Rocket Launcher from a helpful Derelict 1959 | -10/Mines | Core integrity fell below 50% 1985 | -10/Mines | Core integrity fell below 20% 2005 | -10/Mines | Destroyed by Y-45 Defender with Heavy Assault Rifle Last Messages --------------- 01988_ Critical hit (Burn: +37). 01990_ Backup Plating I destroyed. 01991_ Y-45 Defender suffers critical hit (Smash). 01991_ Destroyed Lgt. Treads. 01991_ Y-45 Defender system corrupted by crushing effect. 01994_ Aluminum Leg destroyed. 01994_ R-06 Scavenger collects Lgt. Ion Engine. 01996_ Rocket Launcher destroyed. 01996_ Y-45 Defender suffers critical hit (Smash). 01996_ Destroyed Heat Sink. 01996_ Y-45 Defender system corrupted by crushing effect. 01997_ Y-45 Defender system terminally corrupted. 01997_ Heat Sink fried. 01997_ Beam Rifle fried. 01997_ Hvy. Assault Rifle fried. 01998_ K-01 Serf collects debris. 01998_ R-06 Scavenger collects Grenade Launcher. 01999_ Aluminum Leg destroyed. 01999_ Lgt. Nuclear Core destroyed. 02003_ K-01 Serf collects debris. Map ----- +----------------------------------------------------+ | ???????# ! | | ???????# *%### ### ## | | ???????# ## [|### #?######## | | ???????# ?????# #????????# | | ???????????????## #### ##???????# | | ????????????????###??## ##?????## | | ????????????????????## ##???## | | ????????????????????# #???# | | ????????????????????# ##?## | | ??????????########### ### | | ????????? % # | | ????????? ## | | ?????????### ######## ##? | | ???????????# #??????# ###?? | | ???????????# #??????# #######???? | | ???????????# #??????# #?????????? | | ???????????# #??????# #?????????? | | ???????????# ####??## ##????????? | | ??????????## #### ##???????? | | ?????????## ## ##??????? | | ????????## #??????? | | ?????#### #??????? | | ????##|!## ## ##??????? | | ????#"!! # #######???????? | | ????# Y rk ##?????????????? | | ????# %@ #??????????????? | | ????#"!! #!] #??????????????? | | ????##!!##= #??????????????? | | ?????###?### #??????????????? | | ???????????# ##??????????????? | | ???????????## ##???????????????? | | ????????????#####????????????????? | | ?????????????????????????????????? | | ?????????????????????????????????? | | | | | | | | | | | | | | | | | | | | | | | | | | | | | | | | | +----------------------------------------------------+ Best States ------------- Heat Dissipation 25 Energy Generation 14 Energy Capacity 250 Matter Stores 300 Matter Capacity 300 Sight Range 16 Terrain Scan Density 10 Armor Coverage 80 Evasion (%) 55 Targeting Accuracy 5 Item Schematics ----------------- None Robot Schematics ------------------ None Fabricated ------------ Nothing Repaired ---------- Nothing Studied --------- None Alien Tech Used ----------------- None Achievements -------------- None Challenges ------------ None Game ------ Seed EfficiencySurgePit Manual? 0 Play Time 00:14:41 Cumulative 198.4 hours Start 2025.12.18 @ 18:49:38 End 2025.12.18 @ 19:29:10 Sessions 3 Manual Loads 0 Difficulty Rogue Special Mode None Game No. 273 Rogue 272 Adventurer 1 Explorer 0 Win Type - Total 2 Types 1/0/0/1/0/0/0/0/0/0 Lore% 66 Gallery% 61 Achievement% 54 Wizard Run 0 Options --------- Layout 0 ASCII 0 Keyboard 0 Movement Numpad Keybinds 0 Fullscreen 1 Font 24/Smallcaps Map View 76x50 Zoom Use 0% Tactical HUD 1 Map Filters NONE Filters NONE Steam 1 RUN: 3a15b351-7b48-43a7-b734-f707dcbdb0d7